fUSD/lending_fUSD_20260406
["ID","MTS","AMOUNT","RATE_DAILY","PERIOD"]
[419918762,1775506242870,-1000.0,0.00015332,2]
[419918763,1775506242879,-152.0,0.00015337,12]
[419918764,1775506242888,-1017.22837258,0.00015344,2]
[419918765,1775506242897,-500.0,0.00015344,2]
[419918766,1775506242906,-1573.0,0.0001536,2]
[419918768,1775506242916,-162.0,0.0001536,2]
[419918769,1775506242925,-1573.0,0.0001536,2]
[419918771,1775506242934,-2811.0,0.0001536,2]
[419918773,1775506242943,-151.0,0.00015369,2]
[419918775,1775506242952,-182.66203563,0.0001537,2]
[419918777,1775506242961,-779.65503011,0.0001537,2]
[419918779,1775506242971,-562.5,0.00015371,2]
[419918781,1775506242980,-500.0,0.00015371,2]
[419918783,1775506242990,-500.0,0.00015371,2]
[419918785,1775506242999,-92160.2963882,0.00015372,2]
[419918787,1775506243009,-16585.265675,0.00015372,2]
[419918789,1775506243019,-3022.3985964,0.00015372,2]
[419918791,1775506243028,-123438.9180888,0.00015372,2]
[419918792,1775506243038,-298204.80529978,0.00015372,2]
[419918793,1775506243058,-719.17,0.00015372,2]
[419918794,1775506243091,-915.68180285,0.00015372,2]
[419918795,1775506243452,-396.46210474,0.00015372,2]
[419918796,1775506243465,-106907.63016873,0.00015372,2]
[419918797,1775506243474,-151.0,0.00015372,2]
[419918798,1775506243484,-151.0,0.00015372,2]
[419918799,1775506243495,-151.0,0.00015372,2]
[419918800,1775506243504,-151.0,0.00015372,2]
[419918801,1775506243514,-151.0,0.00015372,2]
[419918802,1775506243523,-151.0,0.00015372,2]
[419918803,1775506243532,-151.0,0.00015372,2]
[419918804,1775506243542,-151.0,0.00015372,2]
[419918805,1775506243551,-865.932241,0.00015372,2]
[419918806,1775506243561,-151.0,0.00015372,2]
[419918807,1775506243571,-151.0,0.00015372,2]
[419918808,1775506243580,-151.0,0.00015372,2]
[419918809,1775506243590,-151.0,0.00015372,2]
[419918810,1775506243599,-151.0,0.00015372,2]
[419918811,1775506243608,-151.0,0.00015372,2]
[419918812,1775506243618,-151.0,0.00015372,2]
[419918813,1775506243627,-151.0,0.00015372,2]
[419918814,1775506243637,-151.0,0.00015372,2]
[419918815,1775506243646,-151.0,0.00015372,2]
[419918816,1775506243656,-151.0,0.00015372,2]
[419918817,1775506243665,-151.0,0.00015372,2]
[419918818,1775506243675,-151.0,0.00015372,2]
[419918819,1775506243684,-151.0,0.00015372,2]
[419918820,1775506243695,-151.0,0.00015372,2]
[419918821,1775506243705,-151.0,0.00015372,2]
[419918822,1775506243715,-151.0,0.00015372,2]
[419918823,1775506243724,-151.0,0.00015372,2]
[419918824,1775506243734,-151.0,0.00015372,2]
[419918825,1775506243745,-151.0,0.00015372,2]
[419918826,1775506243755,-151.0,0.00015372,2]
[419918827,1775506243765,-266.07107,0.00015372,2]
[419918828,1775506243775,-151.0,0.00015372,2]
[419918829,1775506243785,-151.0,0.00015372,2]
[419918830,1775506243795,-151.0,0.00015372,2]
[419918831,1775506243805,-1908.520882,0.00015372,2]
[419918832,1775506243814,-245.770064,0.00015372,2]
[419918833,1775506243824,-1908.520882,0.00015372,2]
[419918834,1775506243834,-245.770064,0.00015372,2]
[419918835,1775506243843,-1908.520882,0.00015372,2]
[419918836,1775506243853,-245.770064,0.00015372,2]
[419918837,1775506243863,-1908.520882,0.00015372,2]
[419918838,1775506243873,-245.770064,0.00015372,2]
[419918839,1775506243883,-275.362629,0.00015372,2]
[419918840,1775506243893,-151.0,0.00015372,2]
[419918841,1775506243902,-275.362629,0.00015372,2]
[419918842,1775506243912,-1071.012167,0.00015372,2]
[419918843,1775506243922,-196.402077,0.00015372,2]
[419918844,1775506243932,-275.362629,0.00015372,2]
[419918845,1775506243942,-1071.012167,0.00015372,2]
[419918846,1775506243951,-275.362629,0.00015372,2]
[419918847,1775506243961,-1071.012167,0.00015372,2]
[419918848,1775506243971,-1071.012167,0.00015372,2]
[419918849,1775506243981,-151.0,0.00015372,2]
[419918850,1775506243990,-151.0,0.00015372,2]
[419918851,1775506244001,-232.102072,0.00015372,2]
[419918852,1775506244011,-151.0,0.00015372,2]
[419918853,1775506244021,-232.102072,0.00015372,2]
[419918854,1775506244031,-151.0,0.00015372,2]
[419918855,1775506244041,-232.102072,0.00015372,2]
[419918856,1775506244050,-191.515392,0.00015372,2]
[419918857,1775506244060,-232.102072,0.00015372,2]
[419918858,1775506244069,-191.515392,0.00015372,2]
[419918859,1775506244079,-151.0,0.00015372,2]
[419918860,1775506244408,-191.515392,0.00015372,2]
[419918861,1775506244418,-151.0,0.00015372,2]
[419918862,1775506244427,-151.0,0.00015372,2]
[419918863,1775506244436,-191.515392,0.00015372,2]
[419918864,1775506244445,-151.0,0.00015372,2]
[419918865,1775506244455,-151.0,0.00015372,2]
[419918866,1775506244464,-151.0,0.00015372,2]
[419918867,1775506244472,-160.827437,0.00015372,2]
[419918868,1775506244482,-151.0,0.00015372,2]
[419918869,1775506244491,-151.0,0.00015372,2]
[419918870,1775506244500,-160.827437,0.00015372,2]
[419918871,1775506244509,-567.606168,0.00015372,2]
[419918872,1775506244519,-1324.90173,0.00015372,2]
[419918873,1775506244528,-151.0,0.00015372,2]
[419918874,1775506244538,-567.606168,0.00015372,2]
[419918875,1775506244547,-1324.90173,0.00015372,2]
[419918876,1775506244557,-151.0,0.00015372,2]
[419918877,1775506244566,-567.606168,0.00015372,2]
[419918878,1775506244576,-1324.90173,0.00015372,2]
[419918879,1775506244585,-151.0,0.00015372,2]
[419918880,1775506244594,-310.094312,0.00015372,2]
[419918881,1775506244603,-567.606168,0.00015372,2]
[419918882,1775506244612,-1324.90173,0.00015372,2]
[419918883,1775506244621,-310.094312,0.00015372,2]
[419918884,1775506244630,-310.094312,0.00015372,2]
[419918885,1775506244641,-292.308373,0.00015372,2]
[419918886,1775506244650,-160.827437,0.00015372,2]
[419918887,1775506244659,-310.094312,0.00015372,2]
[419918888,1775506244668,-160.827437,0.00015372,2]
[419918889,1775506244678,-286.269994,0.00015372,2]
[419918890,1775506244687,-286.269994,0.00015372,2]
[419918891,1775506244697,-286.269994,0.00015372,2]
[419918892,1775506244706,-286.269994,0.00015372,2]
[419918893,1775506244715,-151.0,0.00015372,2]
[419918894,1775506244725,-151.0,0.00015372,2]
[419918895,1775506244734,-299.610638,0.00015372,2]
[419918896,1775506244744,-254.207423,0.00015372,2]
[419918897,1775506244753,-151.0,0.00015372,2]
[419918898,1775506244762,-254.207423,0.00015372,2]
[419918899,1775506244771,-254.207423,0.00015372,2]
[419918900,1775506244780,-254.207423,0.00015372,2]
[419918901,1775506244790,-524.751898,0.00015372,2]
[419918902,1775506244799,-524.751898,0.00015372,2]
[419918903,1775506244808,-524.751898,0.00015372,2]
[419918904,1775506244818,-151.0,0.00015372,2]
[419918905,1775506244827,-524.751898,0.00015372,2]
[419918906,1775506244837,-151.0,0.00015372,2]
[419918907,1775506244846,-366.764517,0.00015372,2]
[419918908,1775506244856,-366.764517,0.00015372,2]
[419918909,1775506244865,-1715.941805,0.00015372,2]
[419918910,1775506244874,-553.482395,0.00015372,2]
[419918911,1775506244883,-366.764517,0.00015372,2]
[419918912,1775506244893,-1715.941805,0.00015372,2]
[419918913,1775506244902,-151.0,0.00015372,2]
[419918914,1775506244911,-151.0,0.00015372,2]
[419918915,1775506244920,-553.482395,0.00015372,2]
[419918916,1775506244930,-1715.941805,0.00015372,2]
[419918917,1775506244939,-366.764517,0.00015372,2]
[419918918,1775506244948,-151.0,0.00015372,2]
[419918919,1775506244957,-151.0,0.00015372,2]
[419918920,1775506244966,-553.482395,0.00015372,2]
[419918921,1775506244976,-1715.941805,0.00015372,2]
[419918922,1775506244985,-151.0,0.00015372,2]
[419918923,1775506244994,-151.0,0.00015372,2]
[419918924,1775506245004,-151.0,0.00015372,2]
[419918925,1775506245013,-151.0,0.00015372,2]
[419918926,1775506245022,-585.190594,0.00015372,2]
[419918927,1775506245032,-232.534013,0.00015372,2]
[419918928,1775506245041,-151.0,0.00015372,2]
[419918929,1775506245051,-151.0,0.00015372,2]
[419918930,1775506245060,-232.534013,0.00015372,2]
[419918931,1775506245069,-585.190594,0.00015372,2]
[419918932,1775506245079,-553.482395,0.00015372,2]
[419918933,1775506245088,-232.534013,0.00015372,2]
[419918934,1775506245098,-585.190594,0.00015372,2]
[419918935,1775506245106,-232.534013,0.00015372,2]
[419918936,1775506245115,-151.0,0.00015372,2]
[419918937,1775506245125,-585.190594,0.00015372,2]
[419918938,1775506245135,-151.0,0.00015372,2]
[419918939,1775506245144,-545.651646,0.00015372,2]
[419918940,1775506245153,-545.651646,0.00015372,2]
[419918941,1775506245163,-151.0,0.00015372,2]
[419918942,1775506245172,-545.651646,0.00015372,2]
[419918943,1775506245181,-545.651646,0.00015372,2]
[419918944,1775506245190,-151.0,0.00015372,2]
[419918945,1775506245199,-729.469798,0.00015372,2]
[419918946,1775506245209,-729.469798,0.00015372,2]
[419918947,1775506245218,-729.469798,0.00015372,2]
[419918948,1775506245227,-729.469798,0.00015372,2]
[419918949,1775506245236,-151.0,0.00015372,2]
[419918950,1775506245257,-387.488501,0.00015372,2]
[419918951,1775506245268,-151.0,0.00015372,2]
[419918952,1775506245277,-387.488501,0.00015372,2]
[419918953,1775506245287,-1038.983212,0.00015372,2]
[419918954,1775506245296,-151.0,0.00015372,2]
[419918955,1775506245306,-1038.983212,0.00015372,2]
[419918956,1775506245315,-151.0,0.00015372,2]
[419918957,1775506245324,-151.0,0.00015372,2]
[419918958,1775506245334,-1038.983212,0.00015372,2]
[419918959,1775506245343,-1038.983212,0.00015372,2]
[419918960,1775506245352,-151.0,0.00015372,2]
[419918961,1775506245362,-387.488501,0.00015372,2]
[419918962,1775506245371,-280.584218,0.00015372,2]
[419918963,1775506245381,-151.0,0.00015372,2]
[419918964,1775506245390,-387.488501,0.00015372,2]
[419918965,1775506245399,-280.584218,0.00015372,2]
[419918966,1775506245410,-151.0,0.00015372,2]
[419918967,1775506245419,-280.584218,0.00015372,2]
[419918968,1775506245428,-151.0,0.00015372,2]
[419918969,1775506245437,-280.584218,0.00015372,2]
[419918970,1775506245447,-436.880734,0.00015372,2]
[419918971,1775506245456,-766.93164,0.00015372,2]
[419918972,1775506245465,-186.094504,0.00015372,2]
[419918973,1775506245474,-436.880734,0.00015372,2]
[419918974,1775506245484,-766.93164,0.00015372,2]
[419918975,1775506245494,-436.880734,0.00015372,2]
[419918976,1775506245503,-766.93164,0.00015372,2]
[419918977,1775506245512,-436.880734,0.00015372,2]
[419918978,1775506245522,-766.93164,0.00015372,2]
[419918979,1775506245531,-157.023332,0.00015372,2]
[419918980,1775506245541,-658.929163,0.00015372,2]
[419918981,1775506245551,-658.929163,0.00015372,2]
[419918982,1775506245560,-234.889848,0.00015372,2]
[419918983,1775506245569,-234.889848,0.00015372,2]
[419918984,1775506245579,-658.929163,0.00015372,2]
[419918985,1775506245588,-272.199966,0.00015372,2]
[419918986,1775506245598,-234.889848,0.00015372,2]
[419918987,1775506245607,-658.929163,0.00015372,2]
[419918988,1775506245617,-272.199966,0.00015372,2]
[419918989,1775506245626,-234.889848,0.00015372,2]
[419918990,1775506245636,-272.199966,0.00015372,2]
[419918991,1775506245645,-272.199966,0.00015372,2]
[419918992,1775506245655,-151.0,0.00015372,2]
[419918993,1775506245665,-1202.256682,0.00015372,2]
[419918994,1775506245675,-151.0,0.00015372,2]
[419918995,1775506245684,-534.952328,0.00015372,2]
[419918996,1775506245694,-151.0,0.00015372,2]
[419918997,1775506245703,-1202.256682,0.00015372,2]
[419918998,1775506245712,-155.71659,0.00015372,2]
[419918999,1775506245721,-232.234571,0.00015372,2]
[419919000,1775506245731,-534.952328,0.00015372,2]
[419919001,1775506245741,-1202.256682,0.00015372,2]
[419919002,1775506245757,-151.0,0.00015372,2]
[419919003,1775506245767,-155.71659,0.00015372,2]
[419919004,1775506245776,-914.8218,0.00015372,2]
[419919005,1775506245786,-232.234571,0.00015372,2]
[419919006,1775506245796,-534.952328,0.00015372,2]
[419919007,1775506245806,-1202.256682,0.00015372,2]
[419919008,1775506245816,-155.71659,0.00015372,2]
[419919009,1775506245826,-914.8218,0.00015372,2]
[419919010,1775506245836,-232.234571,0.00015372,2]
[419919011,1775506245848,-534.952328,0.00015372,2]
[419919012,1775506245859,-155.71659,0.00015372,2]
[419919013,1775506245869,-914.8218,0.00015372,2]
[419919014,1775506245879,-261.551929,0.00015372,2]
[419919015,1775506245889,-232.234571,0.00015372,2]
[419919016,1775506245899,-151.0,0.00015372,2]
[419919017,1775506245909,-914.8218,0.00015372,2]
[419919018,1775506245919,-2647.791397,0.00015372,2]
[419919019,1775506245929,-261.551929,0.00015372,2]
[419919020,1775506245939,-764.02772,0.00015372,2]
[419919021,1775506245950,-151.0,0.00015372,2]
[419919022,1775506245960,-2647.791397,0.00015372,2]
[419919023,1775506245970,-261.551929,0.00015372,2]
[419919024,1775506245980,-764.02772,0.00015372,2]
[419919025,1775506245990,-2647.791397,0.00015372,2]
[419919026,1775506246000,-261.551929,0.00015372,2]
[419919027,1775506246010,-764.02772,0.00015372,2]
[419919028,1775506246020,-2647.791397,0.00015372,2]
[419919029,1775506246030,-764.02772,0.00015372,2]
[419919030,1775506246040,-151.0,0.00015372,2]
[419919031,1775506246050,-151.0,0.00015372,2]
[419919032,1775506246060,-151.0,0.00015372,2]
[419919033,1775506246070,-224.223956,0.00015372,2]
[419919034,1775506246080,-697.02245,0.00015372,2]
[419919035,1775506246091,-697.02245,0.00015372,2]
[419919036,1775506246101,-697.02245,0.00015372,2]
[419919037,1775506246111,-697.02245,0.00015372,2]
[419919038,1775506246121,-190.410851,0.00015372,2]
[419919039,1775506246131,-190.410851,0.00015372,2]
[419919040,1775506246140,-190.410851,0.00015372,2]
[419919041,1775506246151,-190.410851,0.00015372,2]
[419919042,1775506246160,-276.32838,0.00015372,2]
[419919043,1775506246170,-310.015346,0.00015372,2]
[419919045,1775506246179,-276.32838,0.00015372,2]
[419919047,1775506246188,-1519.04079,0.00015372,2]
[419919050,1775506246198,-416.609906,0.00015372,2]
[419919052,1775506246208,-310.015346,0.00015372,2]
[419919054,1775506246217,-151.0,0.00015372,2]
[419919056,1775506246226,-276.32838,0.00015372,2]
[419919058,1775506246236,-416.609906,0.00015372,2]
[419919060,1775506246247,-310.015346,0.00015372,2]
[419919062,1775506246256,-1519.04079,0.00015372,2]
[419919064,1775506246271,-151.0,0.00015372,2]
[419919066,1775506246281,-276.32838,0.00015372,2]
[419919067,1775506246291,-416.609906,0.00015372,2]
[419919068,1775506246301,-310.015346,0.00015372,2]
[419919069,1775506246310,-1519.04079,0.00015372,2]
[419919070,1775506246320,-416.609906,0.00015372,2]
[419919071,1775506246331,-151.0,0.00015372,2]
[419919072,1775506246341,-151.0,0.00015372,2]
[419919073,1775506246351,-163.951386,0.00015372,2]
[419919074,1775506246361,-163.951386,0.00015372,2]
[419919075,1775506246371,-151.0,0.00015372,2]
[419919076,1775506246382,-163.951386,0.00015372,2]
[419919077,1775506246391,-151.0,0.00015372,2]
[419919078,1775506246401,-163.951386,0.00015372,2]
[419919079,1775506246411,-1519.04079,0.00015372,2]
[419919080,1775506246421,-22193.4675198,0.00015374,2]
[419919081,1775506246432,-869.63,0.00015378,2]
[419919082,1775506246442,-22523.01495947,0.00015386,2]
[419919083,1775506246452,-249.0,0.0001539,2]
[419919084,1775506246461,-249.0,0.00015419,2]
[419919085,1775506246472,-1300.0,0.00015452,2]
[419919087,1775506246482,-3000.0,0.00015452,2]
[419919089,1775506246492,-182.66203563,0.00015452,2]
[419919091,1775506246502,-779.65503011,0.00015452,2]
[419919093,1775506246512,-172.35,0.00015457,2]
[419919095,1775506246522,-300.72,0.00015471,2]
[419919097,1775506246532,-2211.86,0.00015471,2]
[419919100,1775506246542,-5665.0,0.00015485,2]
[419919102,1775506246553,-5665.0,0.0001549,2]
[419919104,1775506246563,-17300.0,0.000155,5]
[419919106,1775506246572,-182.66203563,0.00015507,2]
[419919108,1775506246582,-779.65503011,0.00015507,2]
[419919110,1775506246592,-4000.0,0.00015507,2]
[419919112,1775506246603,-350.0,0.00015536,3]
[419919114,1775506246612,-350.0,0.00015537,4]
[419919116,1775506246623,-182.66203563,0.00015562,2]
[419919119,1775506246633,-779.65503011,0.00015562,2]
[419919121,1775506246643,-500.0,0.000156,2]
[419919123,1775506246653,-500.0,0.000156,2]
[419919125,1775506246663,-500.0,0.000156,2]
[419919127,1775506246672,-500.0,0.000156,2]
[419919129,1775506246682,-500.0,0.000156,2]
[419919131,1775506246691,-500.0,0.000156,2]
[419919133,1775506246701,-500.0,0.000156,2]
[419919135,1775506246710,-500.0,0.000156,2]
[419919137,1775506246720,-500.0,0.000156,2]
[419919139,1775506246730,-500.0,0.000156,2]
[419919141,1775506246739,-500.0,0.000156,2]
[419919143,1775506246749,-500.0,0.000156,2]
[419919145,1775506246759,-500.0,0.000156,2]
[419919147,1775506246772,-500.0,0.000156,2]
[419919150,1775506246782,-500.0,0.000156,2]
[419919152,1775506246794,-500.0,0.000156,2]
[419919154,1775506246806,-500.0,0.000156,2]
[419919156,1775506246823,-500.0,0.000156,2]
[419919158,1775506246837,-500.0,0.000156,2]
[419919159,1775506246848,-500.0,0.000156,2]
[419919160,1775506246858,-500.0,0.000156,2]
[419919161,1775506246868,-500.0,0.000156,2]
[419919162,1775506246877,-500.0,0.000156,2]
[419919163,1775506246887,-500.0,0.000156,2]
[419919164,1775506246897,-500.0,0.000156,2]
[419919165,1775506246907,-500.0,0.000156,2]
[419919166,1775506246917,-500.0,0.000156,2]
[419919167,1775506246927,-500.0,0.000156,2]
[419919168,1775506246936,-500.0,0.000156,2]
[419919169,1775506246946,-500.0,0.000156,2]
[419919170,1775506246956,-500.0,0.000156,2]
[419919171,1775506246966,-500.0,0.000156,2]
[419919172,1775506246975,-500.0,0.000156,2]
[419919173,1775506246985,-500.0,0.000156,2]
[419919174,1775506246995,-500.0,0.000156,2]
[419919175,1775506247004,-500.0,0.000156,2]
[419919176,1775506247014,-500.0,0.000156,2]
[419919177,1775506247023,-500.0,0.000156,2]
[419919178,1775506247033,-500.0,0.000156,2]
[419919179,1775506247043,-500.0,0.000156,2]
[419919180,1775506247053,-500.0,0.000156,2]
[419919181,1775506247062,-500.0,0.000156,2]
[419919182,1775506247072,-500.0,0.000156,2]
[419919183,1775506247081,-500.0,0.000156,2]
[419919184,1775506247091,-500.0,0.000156,2]
[419919185,1775506247101,-500.0,0.000156,2]
[419919186,1775506247111,-500.0,0.000156,2]
[419919187,1775506247120,-500.0,0.000156,2]
[419919188,1775506247130,-500.0,0.000156,2]
[419919189,1775506247140,-500.0,0.000156,2]
[419919190,1775506247149,-500.0,0.000156,2]
[419919191,1775506247159,-674.0,0.000156,2]
[419919192,1775506247168,-500.0,0.000156,2]
[419919193,1775506247178,-500.0,0.000156,2]
[419919194,1775506247188,-816.0,0.000156,2]
[419919195,1775506247198,-3400.0,0.000156,5]
[419919196,1775506247207,-2000.0,0.000156,2]
[419919197,1775506247217,-182.66203563,0.00015616,2]
[419919198,1775506247227,-779.65503011,0.00015616,2]
[419919199,1775506247236,-350.0,0.00015622,2]
[419919200,1775506247247,-249.0,0.00015622,2]
[419919201,1775506247257,-350.0,0.00015637,3]
[419919202,1775506247267,-152.0,0.00015668,13]
[419919203,1775506247277,-2811.0,0.0001568,2]
[419919204,1775506247287,-2081.0,0.0001568,2]
[419919205,1775506247297,-182.66203563,0.00015699,2]
[419919206,1775506247307,-779.65503011,0.00015699,2]
[419919207,1775506247316,-3400.0,0.000157,5]
[419919208,1775506247325,-249.0,0.0001571,2]
[419919209,1775506247335,-2000.0,0.00015718,2]
[419919210,1775506247345,-249.0,0.00015721,2]
[419919211,1775506247354,-3203.0,0.00015724,2]
[419919212,1775506247364,-1000.0,0.00015744,2]
[419919213,1775506247374,-1000.0,0.00015744,2]
[419919214,1775506247383,-181.08010149,0.00015747,2]
[419919215,1775506247393,-478.71648202,0.00015747,2]
[419919216,1775506247402,-1000.0,0.00015749,2]
[419919217,1775506247412,-182.66203563,0.00015753,2]
[419919218,1775506247422,-779.65503011,0.00015753,2]
[419919219,1775506247431,-5665.0,0.00015772,2]
[419919220,1775506247440,-570.79309048,0.00015773,2]
[419919221,1775506247450,-150.0,0.00015791,2]
[419919222,1775506247470,-249.0,0.00015796,2]
[419919223,1775506247480,-364.30599819,0.00015796,2]
[419919224,1775506247490,-150.0,0.00015796,2]
[419919225,1775506247499,-350.0,0.00015796,2]
[419919226,1775506247508,-3400.0,0.000158,5]
[419919227,1775506247518,-771.95625003,0.000158,2]
[419919228,1775506247527,-10000.0,0.00015806,30]
[419919229,1775506247536,-858.0,0.00015806,30]
[419919230,1775506247546,-182.66203563,0.00015808,2]
[419919231,1775506247556,-779.65503011,0.00015808,2]
[419919232,1775506247565,-500.0,0.00015813,2]
[419919233,1775506247574,-1000.0,0.00015824,2]
[419919234,1775506247584,-271.0,0.00015826,2]
[419919235,1775506247593,-1000.0,0.00015829,2]
[419919236,1775506247603,-500.0,0.00015832,2]
[419919237,1775506247612,-249.0,0.00015838,2]
[419919238,1775506247621,-2000.0,0.0001584,2]
[419919239,1775506247631,-2000.0,0.0001584,2]
[419919240,1775506247641,-2000.0,0.0001585,2]
[419919241,1775506247650,-271.0,0.00015858,2]
[419919242,1775506247661,-1000.0,0.00015858,2]
[419919243,1775506247671,-5665.0,0.00015858,2]
[419919244,1775506247681,-1472.11,0.00015862,2]
[419919245,1775506247690,-182.66203563,0.00015863,2]
[419919246,1775506247700,-779.65503011,0.00015863,2]
[419919247,1775506247710,-500.0,0.00015872,2]
[419919248,1775506247720,-200.0,0.00015872,2]
[419919249,1775506247730,-500.0,0.0001589,2]
[419919250,1775506247740,-500.0,0.0001589,2]
[419919251,1775506247750,-500.0,0.0001589,2]
[419919252,1775506247760,-500.0,0.0001589,2]
[419919253,1775506247770,-500.0,0.0001589,2]
[419919254,1775506247779,-500.0,0.0001589,2]
[419919255,1775506247789,-500.0,0.0001589,2]
[419919256,1775506247798,-500.0,0.0001589,2]
[419919257,1775506247808,-500.0,0.0001589,2]
[419919258,1775506247819,-500.0,0.0001589,2]
[419919259,1775506247829,-500.0,0.0001589,2]
[419919260,1775506247839,-500.0,0.0001589,2]
[419919261,1775506247849,-500.0,0.0001589,2]
[419919262,1775506247859,-350.0,0.00015891,3]
[419919263,1775506247868,-4000.0,0.00015895,2]
[419919264,1775506247878,-25000.0,0.000159,3]
[419919265,1775506247888,-321.89243267,0.000159,2]
[419919266,1775506247898,-5800.0,0.000159,2]
[419919267,1775506247907,-431.24983249,0.000159,2]
[419919268,1775506247917,-431.24983249,0.000159,2]
[419919269,1775506247927,-431.24983249,0.000159,2]
[419919270,1775506247936,-431.24983249,0.000159,2]
[419919271,1775506247946,-431.24983249,0.000159,2]
[419919272,1775506247956,-3400.0,0.000159,5]
[419919273,1775506247966,-22193.4675198,0.000159,2]
[419919274,1775506247976,-2467.17072911,0.000159,2]
[419919275,1775506247986,-520.35317016,0.000159,2]
[419919276,1775506247996,-22523.01495947,0.000159,2]
[419919277,1775506248007,-4413.14587554,0.000159,2]
[419919278,1775506248017,-200.0787906,0.000159,2]
[419919279,1775506248026,-1931.91111088,0.000159,2]
[419919280,1775506248036,-4216.0,0.000159,5]
[419919281,1775506248045,-2000.0,0.000159,2]
[419919282,1775506248055,-1000.0,0.00015903,2]
[419919283,1775506248065,-1000.0,0.00015912,2]
[419919284,1775506248075,-150.0,0.00015915,2]
[419919285,1775506248084,-1000.0,0.00015916,2]
[419919286,1775506248094,-500.0,0.00015927,4]
[419919287,1775506248104,-250.0,0.0001594,2]
[419919288,1775506248114,-150.0,0.00015942,2]
[419919289,1775506248124,-150.0,0.00015942,2]
[419919290,1775506248134,-150.0,0.00015942,2]
[419919291,1775506248144,-150.0,0.00015942,2]
[419919292,1775506248153,-150.0,0.00015942,2]
[419919293,1775506248163,-198.0,0.00015942,2]
[419919294,1775506248172,-287.42148692,0.0001596,2]
[419919295,1775506248182,-1000.0,0.00015965,2]
[419919296,1775506248192,-1000.0,0.00015967,2]
[419919297,1775506248201,-1000.0,0.0001597,2]
[419919298,1775506248211,-500.0,0.00015973,2]
[419919299,1775506248221,-500.0,0.00015973,2]
[419919300,1775506248231,-500.0,0.00015973,2]
[419919301,1775506248245,-500.0,0.00015973,2]
[419919302,1775506248255,-337.84455229,0.00015973,2]
[419919303,1775506248265,-501.47117302,0.00015973,2]
[419919304,1775506248274,-500.51473043,0.00015973,2]
[419919305,1775506248284,-500.0,0.00015973,2]
[419919306,1775506248293,-500.0,0.00015973,2]
[419919307,1775506248303,-500.0,0.00015973,2]
[419919308,1775506248312,-502.32819122,0.00015973,2]
[419919309,1775506248322,-500.0,0.00015973,2]
[419919310,1775506248332,-500.0,0.00015973,2]
[419919311,1775506248341,-500.0,0.00015973,2]
[419919312,1775506248352,-500.0,0.00015973,2]
[419919313,1775506248362,-500.0,0.00015973,2]
[419919314,1775506248373,-286.46237648,0.00015973,2]
[419919315,1775506248384,-500.0,0.00015973,2]
[419919316,1775506248395,-500.0,0.00015973,2]
[419919317,1775506248405,-556.68829625,0.00015973,2]
[419919318,1775506248416,-500.0,0.00015973,2]
[419919319,1775506248956,-561.18350506,0.00015973,2]
[419919320,1775506248965,-500.96410238,0.00015973,2]
[419919321,1775506248975,-500.2985009,0.00015973,2]
[419919322,1775506248985,-500.0,0.00015973,2]
[419919323,1775506248995,-500.90594274,0.00015973,2]